bitfinex/quotes_BTCUSD_20240623
["timestamp","ask_amount","ask_price","bid_price","bid_amount"]
[1719135712319,0.20557862,64516.0,64515.0,0.29175607]
[1719135713452,0.20558211,64516.0,64515.0,0.29175607]
[1719135714937,0.60290318,64516.0,64515.0,0.05055607]
[1719135715138,0.65470318,64516.0,64515.0,0.05055607]
[1719135715340,0.65470318,64516.0,64515.0,0.036207]
[1719135716337,0.96470318,64516.0,64515.0,0.036207]
[1719135718127,0.96459897,64516.0,64515.0,0.036207]
[1719135718539,0.80743609,64516.0,64515.0,0.036207]
[1719135719724,0.9646041,64516.0,64515.0,0.036207]
[1719135720298,0.80743609,64516.0,64515.0,0.036207]
[1719135720744,0.6748182,64516.0,64515.0,0.036207]
[1719135720954,0.72241538,64516.0,64515.0,0.036207]
[1719135721170,0.68448028,64516.0,64515.0,0.036207]
[1719135721367,1.04207891,64516.0,64515.0,0.036207]
[1719135721569,1.03241683,64516.0,64515.0,0.036207]
[1719135722022,0.87524716,64516.0,64515.0,0.036207]
[1719135723583,0.87461286,64516.0,64515.0,0.036207]
[1719135723934,0.86495054,64516.0,64515.0,0.036207]
[1719135726513,0.82765,64516.0,64515.0,0.036207]
[1719135726698,0.86398829,64516.0,64515.0,0.036207]
[1719135729947,0.82765,64516.0,64515.0,0.036207]
[1719135730459,0.8638512,64516.0,64515.0,0.036207]
[1719135731248,0.86390091,64516.0,64515.0,0.036207]
[1719135732700,0.86392425,64516.0,64515.0,0.036207]
[1719135733451,0.86385634,64516.0,64515.0,0.036207]
[1719135736001,0.86372451,64516.0,64515.0,0.036207]
[1719135739074,0.82765,64516.0,64515.0,0.036207]
[1719135739232,0.86338687,64516.0,64515.0,0.036207]
[1719135739443,1.13765,64516.0,64515.0,0.036207]
[1719135739641,1.17338687,64516.0,64515.0,0.036207]
[1719135740735,1.17338997,64516.0,64515.0,0.036207]
[1719135742319,1.17338184,64516.0,64515.0,0.036207]
[1719135745391,1.17253726,64516.0,64515.0,0.036207]
[1719135748333,1.13765,64516.0,64515.0,0.036207]
[1719135748552,1.17219538,64516.0,64515.0,0.036207]
[1719135749548,1.13765,64516.0,64515.0,0.036207]
[1719135749834,1.17203559,64516.0,64515.0,0.036207]
[1719135751631,1.17169276,64516.0,64515.0,0.036207]
[1719135754713,1.17155728,64516.0,64515.0,0.036207]
[1719135755522,1.17155728,64516.0,64515.0,0.026207]
[1719135756078,1.17155728,64516.0,64515.0,0.036207]
[1719135757891,1.17158875,64516.0,64515.0,0.036207]
[1719135759441,1.17157681,64516.0,64515.0,0.036207]
[1719135760933,1.13765,64516.0,64515.0,0.036207]
[1719135761133,1.17157995,64516.0,64515.0,0.036207]
[1719135764059,1.13765,64516.0,64515.0,0.036207]
[1719135764185,1.17163772,64516.0,64515.0,0.036207]
[1719135766133,1.17163772,64516.0,64515.0,0.026207]
[1719135766340,1.17163772,64516.0,64515.0,0.036207]
[1719135766341,1.11983772,64516.0,64515.0,0.036207]
[1719135766928,1.17163772,64516.0,64515.0,0.036207]
[1719135767336,1.17050519,64516.0,64515.0,0.036207]
[1719135767785,1.11870519,64516.0,64515.0,0.036207]
[1719135768233,1.17058046,64516.0,64515.0,0.036207]
[1719135768814,1.13765,64516.0,64515.0,0.036207]
[1719135769068,1.17076214,64516.0,64515.0,0.036207]
[1719135769762,1.11896214,64516.0,64515.0,0.036207]
[1719135769972,1.17076214,64516.0,64515.0,0.036207]
[1719135770242,1.13765,64516.0,64515.0,0.036207]
[1719135770464,1.17076473,64516.0,64515.0,0.036207]
[1719135771025,1.17076473,64516.0,64515.0,0.026207]
[1719135771231,1.11896473,64516.0,64515.0,0.036207]
[1719135771431,1.17076473,64516.0,64515.0,0.036207]
[1719135772246,1.17076473,64516.0,64515.0,0.026207]
[1719135772439,1.17076473,64516.0,64515.0,0.036207]
[1719135773440,1.17076473,64516.0,64515.0,0.026207]
[1719135773668,1.11896473,64516.0,64515.0,0.036207]
[1719135773874,1.17076473,64516.0,64515.0,0.026207]
[1719135774080,1.17076473,64516.0,64515.0,0.036207]
[1719135774680,1.17082667,64516.0,64515.0,0.036207]
[1719135775078,1.17082667,64516.0,64515.0,0.026207]
[1719135775079,1.48082667,64516.0,64515.0,0.026207]
[1719135775278,2.27688167,64516.0,64515.0,0.026207]
[1719135776276,2.3530539,64516.0,64515.0,0.026207]
[1719135776484,2.46234086,64516.0,64515.0,0.026207]
[1719135776708,2.42982498,64516.0,64515.0,0.026207]
[1719135776909,2.50674147,64516.0,64515.0,0.026207]
[1719135777111,2.42997039,64516.0,64515.0,0.026207]
[1719135777307,2.46265245,64516.0,64515.0,0.026207]
[1719135777838,2.47265245,64516.0,64515.0,0.026207]
[1719135778045,2.47350245,64516.0,64515.0,0.026207]
[1719135778179,2.46350245,64516.0,64515.0,0.026207]
[1719135779425,2.3539039,64516.0,64515.0,0.026207]
[1719135779647,2.46337997,64516.0,64515.0,0.026207]
[1719135780684,2.41157997,64516.0,64515.0,0.026207]
[1719135780868,2.11677497,64516.0,64515.0,0.026207]
[1719135781080,2.07779697,64516.0,64515.0,0.026207]
[1719135782012,1.9683209,64516.0,64515.0,0.026207]
[1719135782166,2.00216311,64516.0,64515.0,0.026207]
[1719135782969,1.60929111,64516.0,64515.0,0.026207]
[1719135783321,2.13588011,64516.0,64515.0,0.026207]
[1719135783664,1.85648011,64516.0,64515.0,0.026207]
[1719135783890,1.38169111,64516.0,64515.0,0.026207]
[1719135785092,1.38285364,64516.0,64515.0,0.026207]
[1719135785555,1.3478489,64516.0,64515.0,0.026207]
[1719135785722,1.38289536,64516.0,64515.0,0.026207]
[1719135786782,1.41795396,64516.0,64515.0,0.026207]
[1719135787149,1.3829075,64516.0,64515.0,0.026207]
[1719135789550,1.27362054,64516.0,64515.0,0.026207]
[1719135793617,1.27293998,64516.0,64515.0,0.026207]
[1719135794241,1.27293998,64516.0,64515.0,0.036207]
[1719135794474,1.27290513,64516.0,64515.0,0.036207]
[1719135794812,1.27290513,64516.0,64515.0,0.026207]
[1719135797560,1.27300649,64516.0,64515.0,0.026207]
[1719135800539,1.23856194,64516.0,64515.0,0.026207]
[1719135800845,1.27298324,64516.0,64515.0,0.026207]
[1719135802452,1.35141853,64516.0,64515.0,0.026207]
[1719135803719,1.23856194,64516.0,64515.0,0.026207]
[1719135803898,1.35132503,64516.0,64515.0,0.026207]
[1719135804118,1.27293337,64516.0,64515.0,0.026207]
[1719135804313,1.35132503,64516.0,64515.0,0.026207]
[1719135806865,1.35056382,64516.0,64515.0,0.026207]
[1719135809993,1.3504425,64516.0,64515.0,0.026207]
[1719135813159,1.27217524,64516.0,64515.0,0.026207]
[1719135813244,1.34990354,64516.0,64515.0,0.026207]
[1719135813449,1.31629024,64516.0,64515.0,0.026207]
[1719135813642,1.34990354,64516.0,64515.0,0.026207]
[1719135816020,1.31631701,64516.0,64515.0,0.026207]
[1719135816275,1.34996023,64516.0,64515.0,0.026207]
[1719135819018,1.23856194,64516.0,64515.0,0.026207]
[1719135819236,1.34996195,64516.0,64515.0,0.026207]
[1719135820039,1.47996195,64516.0,64515.0,0.026207]
[1719135822227,1.36856194,64516.0,64515.0,0.026207]
[1719135822351,1.47825101,64516.0,64515.0,0.026207]
[1719135822558,1.36856194,64516.0,64515.0,0.026207]
[1719135822755,1.44551947,64516.0,64515.0,0.026207]
[1719135822960,1.47825101,64516.0,64515.0,0.026207]
[1719135825276,1.47839448,64516.0,64515.0,0.026207]
[1719135828479,1.36856194,64516.0,64515.0,0.026207]
[1719135828679,1.478504,64516.0,64515.0,0.026207]
[1719135829237,1.426704,64516.0,64515.0,0.026207]
[1719135829419,1.478504,64516.0,64515.0,0.026207]
[1719135831476,1.36856194,64516.0,64515.0,0.026207]
[1719135831628,1.47881273,64516.0,64515.0,0.026207]
[1719135832028,1.47878596,64516.0,64515.0,0.026207]
[1719135834645,1.40167348,64516.0,64515.0,0.026207]
[1719135834965,1.47896357,64516.0,64515.0,0.026207]
[1719135835165,1.42716357,64516.0,64515.0,0.026207]
[1719135835378,1.47896357,64516.0,64515.0,0.026207]
[1719135837206,1.34896357,64516.0,64515.0,0.026207]
[1719135837748,1.35010457,64516.0,64515.0,0.026207]
[1719135840732,1.35089443,64516.0,64515.0,0.026207]
[1719135841112,1.31675293,64516.0,64515.0,0.026207]
[1719135841312,1.35079016,64516.0,64515.0,0.026207]
[1719135841553,1.35069904,64516.0,64515.0,0.026207]
[1719135842503,1.35082613,64516.0,64515.0,0.026207]
[1719135843164,1.23856194,64516.0,64515.0,0.026207]
[1719135843403,1.350843,64516.0,64515.0,0.026207]
[1719135845965,1.299043,64516.0,64515.0,0.026207]
[1719135846139,1.350843,64516.0,64515.0,0.026207]
[1719135846352,1.23856194,64516.0,64515.0,0.026207]
[1719135846671,1.35095701,64516.0,64515.0,0.026207]
[1719135848625,1.29915701,64516.0,64515.0,0.026207]
[1719135848939,1.35095701,64516.0,64515.0,0.257307]
[1719135849090,1.27273669,64516.0,64515.0,0.257307]
[1719135849259,1.23856194,64516.0,64515.0,0.257307]
[1719135849480,1.35194163,64516.0,64515.0,0.257307]
[1719135849682,1.23856194,64516.0,64515.0,0.257307]
[1719135849882,1.27326222,64516.0,64515.0,0.257307]
[1719135850079,1.35194132,64516.0,64515.0,0.257307]
[1719135850498,1.35194132,64516.0,64515.0,0.267307]
[1719135851124,1.43056657,64516.0,64515.0,0.267307]
[1719135851275,1.35188747,64516.0,64515.0,0.257307]
[1719135852318,1.27332876,64516.0,64515.0,0.257307]
[1719135852567,1.35206608,64516.0,64515.0,0.257307]
[1719135853739,1.35206608,64516.0,64515.0,0.267307]
[1719135853740,1.23856194,64516.0,64515.0,0.267307]
[1719135853948,1.3520105,64516.0,64515.0,0.257307]
[1719135855477,1.23856194,64516.0,64515.0,0.257307]
[1719135855928,1.35200767,64516.0,64515.0,0.257307]
[1719135857698,1.35200767,64516.0,64515.0,0.267307]
[1719135858057,1.30020767,64516.0,64515.0,0.267307]
[1719135858375,1.27329761,64516.0,64515.0,0.267307]
[1719135859010,1.23856194,64516.0,64515.0,0.267307]
[1719135859219,1.31761779,64516.0,64515.0,0.267307]
[1719135859422,1.35274899,64516.0,64515.0,0.267307]
[1719135860120,1.30094899,64516.0,64515.0,0.267307]
[1719135860318,1.27369314,64516.0,64515.0,0.267307]
[1719135862950,0.9641819,64516.0,64515.0,0.28406533]
[1719135863822,0.91237386,64516.0,64515.0,0.28406533]
[1719135864023,0.96417386,64516.0,64515.0,0.28406533]
[1719135864745,0.61856194,64516.0,64515.0,0.28406533]
[1719135864947,0.65425813,64516.0,64515.0,0.28406533]
[1719135865106,0.60245813,64516.0,64515.0,0.28406533]
[1719135865312,0.65425813,64516.0,64515.0,0.28406533]
[1719135867791,0.61856194,64516.0,64515.0,0.28406533]
[1719135867959,0.65456149,64516.0,64515.0,0.28406533]
[1719135868343,0.61856194,64516.0,64515.0,0.28406533]
[1719135868549,0.65464572,64516.0,64515.0,0.28406533]
[1719135869664,0.65472473,64516.0,64515.0,0.28406533]
[1719135870268,0.60292473,64516.0,64515.0,0.28406533]
[1719135870446,0.65472473,64516.0,64515.0,0.28406533]
[1719135870883,0.61856194,64516.0,64515.0,0.28406533]
[1719135871053,0.60294345,64516.0,64515.0,0.28406533]
[1719135871235,0.65474345,64516.0,64515.0,0.28406533]
[1719135874118,0.65472734,64516.0,64515.0,0.28406533]
[1719135874808,0.60292734,64516.0,64515.0,0.28406533]
[1719135874944,0.65472734,64516.0,64515.0,0.28406533]
[1719135877111,0.61856194,64516.0,64515.0,0.28406533]
[1719135877442,0.65482525,64516.0,64515.0,0.28406533]
[1719135877648,0.61856194,64516.0,64515.0,0.28406533]
[1719135877782,0.65482473,64516.0,64515.0,0.28406533]
[1719135878810,0.61856194,64516.0,64515.0,0.28406533]
[1719135879009,0.65487272,64516.0,64515.0,0.28406533]
[1719135879982,0.18896078,64516.0,64515.0,0.28406533]
[1719135880187,0.08886115,64516.0,64515.0,0.28406533]
[1719135880605,0.55386115,64516.0,64515.0,0.28406533]
[1719135880827,0.65386115,64516.0,64515.0,0.28406533]
[1719135883290,0.61765,64516.0,64515.0,0.28406533]
[1719135883494,0.65387672,64516.0,64515.0,0.28406533]
[1719135885333,0.18887672,64516.0,64515.0,0.17836533]
[1719135885482,0.18887672,64516.0,64515.0,0.27576533]
[1719135885687,0.34387672,64516.0,64515.0,0.27576533]
[1719135886468,0.30765,64516.0,64515.0,0.27576533]
[1719135886670,0.29202452,64516.0,64515.0,0.27576533]
[1719135886877,0.30765,64516.0,64515.0,0.27576533]
[1719135887077,0.34382446,64516.0,64515.0,0.26576533]
[1719135887278,0.34382446,64516.0,64515.0,0.27576533]
[1719135888321,0.34394651,64516.0,64515.0,0.27576533]
[1719135890254,0.65394651,64516.0,64515.0,0.27576533]
[1719135890431,0.60214651,64516.0,64515.0,0.27576533]
[1719135890645,0.65394651,64516.0,64515.0,0.27576533]
[1719135891410,0.29214651,64516.0,64515.0,0.27576533]
[1719135892356,0.30180898,64516.0,64515.0,0.27576533]
[1719135892557,0.25585,64516.0,64515.0,0.27576533]
[1719135892775,0.30322785,64516.0,64515.0,0.27576533]
[1719135893483,0.61322785,64516.0,64515.0,0.27576533]
[1719135895641,0.56585,64516.0,64515.0,0.27576533]
[1719135895876,0.61322365,64516.0,64515.0,0.27576533]
[1719135896516,0.61322365,64516.0,64515.0,0.27115549]
[1719135898903,0.61322449,64516.0,64515.0,0.27115549]
[1719135901142,0.56585,64516.0,64515.0,0.27115549]
[1719135901345,0.61324949,64516.0,64515.0,0.27115549]
[1719135901750,0.61324949,64516.0,64515.0,0.259007]
[1719135904038,0.61324949,64516.0,64515.0,0.161607]
[1719135904428,0.56585,64516.0,64515.0,0.161607]
[1719135904596,0.61311763,64516.0,64515.0,0.161607]
[1719135905027,0.57551247,64516.0,64515.0,0.161607]
[1719135905350,0.61311763,64516.0,64515.0,0.161607]
[1719135905716,0.56311763,64516.0,64515.0,0.161607]
[1719135905911,0.51226763,64516.0,64515.0,0.161607]
[1719135906250,0.35722941,64516.0,64515.0,0.161607]
[1719135906593,0.51222941,64516.0,64515.0,0.161607]
[1719135907432,0.465,64516.0,64515.0,0.161607]
[1719135907637,0.5118424,64516.0,64515.0,0.17375549]
[1719135907835,0.5118424,64516.0,64515.0,0.161607]
[1719135910584,0.465,64516.0,64515.0,0.161607]
[1719135910763,0.51177973,64516.0,64515.0,0.161607]
[1719135910961,0.51177973,64516.0,64515.0,0.17375549]
[1719135911125,0.51177973,64516.0,64515.0,0.161607]
[1719135913682,0.465,64516.0,64515.0,0.161607]
[1719135913885,0.53911949,64516.0,64515.0,0.161607]
[1719135914093,0.54878178,64516.0,64515.0,0.161607]
[1719135914281,0.58584125,64516.0,64515.0,0.161607]
[1719135914560,0.59550366,64516.0,64515.0,0.161607]
[1719135914983,0.86844406,64516.0,64515.0,0.161607]
[1719135915673,0.83138459,64516.0,64515.0,0.161607]
[1719135915878,0.82172218,64516.0,64515.0,0.036207]
[1719135916125,0.85870873,64516.0,64515.0,0.036207]
[1719135916722,0.82172218,64516.0,64515.0,0.036207]
[1719135917275,0.85787762,64516.0,64515.0,0.036207]
[1719135917502,0.89403317,64516.0,64515.0,0.036207]
[1719135919816,0.85787762,64516.0,64515.0,0.036207]
[1719135920069,0.89396614,64516.0,64515.0,0.036207]
[1719135922956,0.85787762,64516.0,64515.0,0.036207]
[1719135923137,0.89381613,64516.0,64515.0,0.036207]
[1719135923489,0.89381614,64516.0,64515.0,0.036207]
[1719135924692,0.85787762,64516.0,64515.0,0.036207]
[1719135924989,0.89387178,64516.0,64515.0,0.036207]
[1719135926154,0.89372759,64516.0,64515.0,0.036207]
[1719135927994,0.89372759,64516.0,64515.0,0.026207]
[1719135929001,1.02622759,64516.0,64515.0,0.026207]
[1719135929215,0.99037762,64516.0,64515.0,0.026207]
[1719135929411,1.33612514,64516.0,64515.0,0.026207]
[1719135932527,1.33604555,64516.0,64515.0,0.026207]
[1719135933401,1.20354555,64516.0,64515.0,0.026207]
[1719135934141,1.20354916,64516.0,64515.0,0.026207]
[1719135934566,1.12067154,64516.0,64515.0,0.026207]
[1719135935302,1.12152154,64516.0,64515.0,0.026207]
[1719135935505,1.1314276,64516.0,64515.0,0.026207]
[1719135938646,1.13021249,64516.0,64515.0,0.026207]
[1719135940689,1.12021249,64516.0,64515.0,0.026207]
[1719135941438,1.17201249,64516.0,64515.0,0.026207]
[1719135941657,1.17191257,64516.0,64515.0,0.026207]
[1719135942058,1.13765,64516.0,64515.0,0.026207]
[1719135942421,1.1719126,64516.0,64515.0,0.026207]
[1719135943294,1.17190288,64516.0,64515.0,0.026207]
[1719135944645,1.13765,64516.0,64515.0,0.026207]
[1719135944848,1.17219465,64516.0,64515.0,0.026207]
[1719135947937,1.17223347,64516.0,64515.0,0.026207]
[1719135950354,1.41083347,64516.0,64515.0,0.026207]
[1719135950960,1.41085649,64516.0,64515.0,0.026207]
[1719135951160,1.35905649,64516.0,64515.0,0.026207]
[1719135951387,1.37625,64516.0,64515.0,0.026207]
[1719135951599,1.4109834,64516.0,64515.0,0.026207]
[1719135952003,1.3591834,64516.0,64515.0,0.026207]
[1719135952219,1.4109834,64516.0,64515.0,0.026207]
[1719135954097,1.41131953,64516.0,64515.0,0.026207]
[1719135954893,1.49032949,64516.0,64515.0,0.026207]
[1719135956214,1.41131953,64516.0,64515.0,0.026207]
[1719135956917,1.35951953,64516.0,64515.0,0.026207]
[1719135957134,1.37625,64516.0,64515.0,0.026207]
[1719135957287,1.41135722,64516.0,64515.0,0.026207]
[1719135960175,1.28155722,64516.0,64515.0,0.026207]
[1719135960362,1.24645,64516.0,64515.0,0.026207]
[1719135960567,1.28177121,64516.0,64515.0,0.026207]
[1719135960787,1.24645,64516.0,64515.0,0.026207]
[1719135960962,1.28177136,64516.0,64515.0,0.026207]
[1719135962031,1.28176936,64516.0,64515.0,0.026207]
[1719135962728,1.17296635,64516.0,64515.0,0.026207]
[1719135964692,1.28176635,64516.0,64515.0,0.026207]
[1719135964896,1.41156635,64516.0,64515.0,0.026207]
[1719135965771,1.41153457,64516.0,64515.0,0.026207]
[1719135968114,1.49076473,64516.0,64515.0,0.026207]
[1719135968941,1.49081857,64516.0,64515.0,0.026207]
[1719135969383,1.44692045,64516.0,64515.0,0.026207]
[1719135969711,1.49081849,64516.0,64515.0,0.026207]
[1719135971922,1.49036954,64516.0,64515.0,0.026207]
[1719135973680,1.25176954,64516.0,64515.0,0.026207]
[1719135974091,1.13765,64516.0,64515.0,0.026207]
[1719135974404,1.25144309,64516.0,64515.0,0.026207]
[1719135975127,1.13765,64516.0,64515.0,0.026207]
[1719135975345,1.25003852,64516.0,64515.0,0.026207]
[1719135975857,1.26003852,64516.0,64515.0,0.026207]
[1719135976470,1.28575124,64516.0,64515.0,0.026207]
[1719135977920,1.2515778,64516.0,64515.0,0.026207]
[1719135978119,1.28567266,64516.0,64515.0,0.026207]
[1719135978529,1.27576916,64516.0,64515.0,0.026207]
[1719135978748,1.28576916,64516.0,64515.0,0.026207]
[1719135979591,1.27576916,64516.0,64515.0,0.026207]
[1719135981203,1.27611655,64516.0,64515.0,0.026207]
[1719135981549,1.22431655,64516.0,64515.0,0.026207]
[1719135981792,1.27611655,64516.0,64515.0,0.026207]
[1719135984181,1.27897084,64516.0,64515.0,0.026207]
[1719135986362,1.28897084,64516.0,64515.0,0.026207]
[1719135987350,1.28863054,64516.0,64515.0,0.026207]
[1719135987716,1.16336272,64516.0,64515.0,0.026207]
[1719135987937,1.24285581,64516.0,64515.0,0.026207]
[1719135988143,1.27849725,64516.0,64515.0,0.026207]
[1719135988888,1.27872632,64516.0,64515.0,0.026207]
[1719135990337,1.19912573,64516.0,64515.0,0.026207]
[1719135990503,1.27872482,64516.0,64515.0,0.026207]
[1719135991926,1.22692482,64516.0,64515.0,0.026207]
[1719135992134,1.27872482,64516.0,64515.0,0.026207]
[1719135993155,1.22692482,64516.0,64515.0,0.026207]
[1719135993338,1.27872482,64516.0,64515.0,0.026207]
[1719135993533,1.24304219,64516.0,64515.0,0.026207]
[1719135993774,1.2789006,64516.0,64515.0,0.026207]
[1719135994901,1.30735912,64516.0,64515.0,0.026207]
[1719135996578,1.19182124,64516.0,64515.0,0.026207]
[1719135996767,1.30773345,64516.0,64515.0,0.026207]
[1719135997050,1.19182124,64516.0,64515.0,0.026207]
[1719135997298,1.11156272,64516.0,64515.0,0.026207]
[1719135997500,1.16336272,64516.0,64515.0,0.026207]
[1719135997682,1.22747362,64516.0,64515.0,0.026207]
[1719135997828,1.28893435,64516.0,64515.0,0.026207]
[1719135998662,1.27927362,64516.0,64515.0,0.026207]
[1719135999703,1.2438367,64516.0,64515.0,0.026207]
[1719135999906,1.28060243,64516.0,64515.0,0.026207]
[1719136000490,1.22880243,64516.0,64515.0,0.026207]
[1719136000697,1.28060243,64516.0,64515.0,0.026207]
[1719136001466,1.28060243,64516.0,64515.0,0.017207]
[1719136001672,1.29026321,64516.0,64515.0,0.017207]
[1719136001874,1.29126321,64516.0,64515.0,0.027207]
[1719136002890,1.24489357,64516.0,64515.0,0.027207]
[1719136003097,1.2913851,64516.0,64515.0,0.027207]
[1719136006001,1.17402351,64516.0,64515.0,0.027207]
[1719136006184,1.28172408,64516.0,64515.0,0.027207]
[1719136006391,1.24489345,64516.0,64515.0,0.027207]
[1719136006629,1.37274579,64516.0,64515.0,0.027207]
[1719136007031,1.29221506,64516.0,64515.0,0.027207]
[1719136007607,1.29220923,64516.0,64515.0,0.027207]
[1719136009023,1.24040923,64516.0,64515.0,0.027207]
[1719136009263,1.28275181,64516.0,64515.0,0.027207]
[1719136009460,1.29241259,64516.0,64515.0,0.027207]
[1719136010669,1.21178968,64516.0,64515.0,0.027207]
[1719136011146,1.16519292,64516.0,64515.0,0.027207]
[1719136011313,1.21210273,64516.0,64515.0,0.027207]
[1719136012904,1.21210273,64516.0,64515.0,0.013207]
[1719136013388,1.21310273,64516.0,64515.0,0.027207]
[1719136015382,1.16619292,64516.0,64515.0,0.027207]
[1719136015612,1.29359002,64516.0,64515.0,0.027207]
[1719136015762,1.24689914,64516.0,64515.0,0.027207]
[1719136015967,1.25659297,64516.0,64515.0,0.027207]
[1719136016173,1.2936603,64516.0,64515.0,0.027207]
[1719136017147,1.21292127,64516.0,64515.0,0.027207]
[1719136017757,1.20326025,64516.0,64515.0,0.027207]
[1719136018518,1.28322211,64516.0,64515.0,0.027207]
[1719136019697,1.20284576,64516.0,64515.0,0.027207]
[1719136021107,1.29293174,64516.0,64515.0,0.027207]
[1719136021308,1.28293174,64516.0,64515.0,0.027207]
[1719136021511,1.23113174,64516.0,64515.0,0.027207]
[1719136021715,1.28293174,64516.0,64515.0,0.027207]
[1719136024034,1.16619292,64516.0,64515.0,0.027207]
[1719136024153,1.28293132,64516.0,64515.0,0.027207]
[1719136024352,1.16619292,64516.0,64515.0,0.027207]
[1719136024548,1.28293133,64516.0,64515.0,0.027207]
[1719136026278,1.40513133,64516.0,64515.0,0.027207]
[1719136027029,1.28839292,64516.0,64515.0,0.027207]
[1719136027232,1.40456379,64516.0,64515.0,0.027207]
[1719136027418,1.35276379,64516.0,64515.0,0.027207]
[1719136027612,1.40456379,64516.0,64515.0,0.027207]
[1719136028421,1.28236379,64516.0,64515.0,0.027207]
[1719136028771,1.74787892,64516.0,64515.0,0.027207]
[1719136028982,1.75754019,64516.0,64515.0,0.027207]
[1719136030131,1.7591692,64516.0,64515.0,0.027207]
[1719136030766,1.7581692,64516.0,64515.0,0.017207]
[1719136031100,1.7591692,64516.0,64515.0,0.027207]
[1719136031245,1.7681692,64516.0,64515.0,0.013207]
[1719136031447,1.7691692,64516.0,64515.0,0.026207]
[1719136031949,1.7591692,64516.0,64515.0,0.026207]
[1719136032148,1.7063692,64516.0,64515.0,0.016207]
[1719136032376,1.7581692,64516.0,64515.0,0.016207]
[1719136032753,1.53885407,64516.0,64515.0,0.016207]
[1719136033209,1.41139292,64516.0,64515.0,0.016207]
[1719136033387,1.54024298,64516.0,64515.0,0.016207]
[1719136033796,1.54123662,64516.0,64515.0,0.025207]
[1719136034155,1.42205402,64516.0,64515.0,0.025207]
[1719136034355,1.41239292,64516.0,64515.0,0.025207]
[1719136036572,1.63874706,64516.0,64515.0,0.025207]
[1719136036779,3.17095306,64516.0,64515.0,0.025207]
[1719136038892,3.25202006,64516.0,64515.0,0.025207]
[1719136041126,3.17095306,64516.0,64515.0,0.025207]
[1719136046743,3.11915306,64516.0,64515.0,0.025207]
[1719136046965,3.17095306,64516.0,64515.0,0.025207]
[1719136047192,3.28573906,64516.0,64515.0,0.025207]
[1719136048567,3.51482207,64516.0,64515.0,0.025207]
[1719136050324,3.36226793,64516.0,64515.0,0.025207]
[1719136050682,3.36210221,64516.0,64515.0,0.025207]
[1719136051119,3.097656,64516.0,64515.0,0.025207]
[1719136051290,3.36210221,64516.0,64515.0,0.025207]
[1719136054207,3.28278449,64516.0,64515.0,0.025207]
[1719136054431,3.36199903,64516.0,64515.0,0.025207]
[1719136056364,3.22919903,64516.0,64515.0,0.025207]
[1719136056706,3.38175317,64516.0,64515.0,0.025207]
[1719136057608,3.11736702,64516.0,64515.0,0.025207]
[1719136057807,3.33785965,64516.0,64515.0,0.025207]
[1719136057960,3.54167361,64516.0,64515.0,0.025207]
[1719136058585,2.34566761,64516.0,64515.0,0.025207]
[1719136058791,4.78578061,64516.0,64515.0,0.025207]
[1719136058998,2.34566761,64516.0,64515.0,0.025207]
[1719136059207,4.78578061,64516.0,64515.0,0.025207]
[1719136059725,4.63322647,64516.0,64515.0,0.025207]
[1719136061028,4.63331639,64516.0,64515.0,0.025207]
[1719136061236,4.40425828,64516.0,64515.0,0.025207]
[1719136061662,4.32505382,64516.0,64515.0,0.025207]
[1719136061883,4.40435084,64516.0,64515.0,0.025207]
[1719136062606,4.36902451,64516.0,64515.0,0.025207]
[1719136062810,4.28972749,64516.0,64515.0,0.025207]
[1719136063109,4.36952911,64516.0,64515.0,0.025207]
[1719136064096,4.36960979,64516.0,64515.0,0.025207]
[1719136065974,4.59868421,64516.0,64515.0,0.025207]
[1719136066145,4.6802668,64516.0,64515.0,0.025207]
[1719136066904,4.5278898,64516.0,64515.0,0.025207]
[1719136067122,4.4032898,64516.0,64515.0,0.025207]
[1719136067362,4.40306689,64516.0,64515.0,0.025207]
[1719136067939,4.29966689,64516.0,64515.0,0.025207]
[1719136068332,4.07059061,64516.0,64515.0,0.025207]
[1719136068703,3.98900802,64516.0,64515.0,0.025207]
[1719136070284,3.87392892,64516.0,64515.0,0.025207]
[1719136070487,3.98924733,64516.0,64515.0,0.025207]
[1719136076561,1.70143162,64516.0,64515.0,0.025207]
[1719136077562,4.14154462,64516.0,64515.0,0.025207]
[1719136077707,1.85398576,64516.0,64515.0,0.025207]
[1719136077925,4.29409876,64516.0,64515.0,0.025207]
[1719136078127,4.02926062,64516.0,64515.0,0.025207]
[1719136078327,2.90166162,64516.0,64515.0,0.025207]
[1719136079602,2.78642292,64516.0,64515.0,0.025207]
[1719136079803,2.90286942,64516.0,64515.0,0.025207]
[1719136080001,2.86652645,64516.0,64515.0,0.025207]
[1719136080322,2.86670058,64516.0,64515.0,0.025207]
[1719136080639,2.90324257,64516.0,64515.0,0.025207]
[1719136082002,2.92069864,64516.0,64515.0,0.025207]
[1719136085124,2.8041409,64516.0,64515.0,0.025207]
[1719136085323,2.84053239,64516.0,64515.0,0.025207]
[1719136085530,2.92067814,64516.0,64515.0,0.025207]
[1719136088225,2.92069364,64516.0,64515.0,0.025207]
[1719136088728,2.92069379,64516.0,64515.0,0.025207]
[1719136091178,2.8041409,64516.0,64515.0,0.025207]
[1719136091397,2.92066954,64516.0,64515.0,0.025207]
[1719136091805,4.02956754,64516.0,64515.0,0.025207]
[1719136094317,3.99317503,64516.0,64515.0,0.025207]
[1719136094523,4.0295551,64516.0,64515.0,0.025207]
[1719136097353,3.9130389,64516.0,64515.0,0.025207]
[1719136097613,4.0297225,64516.0,64515.0,0.025207]
[1719136098138,3.94944765,64516.0,64515.0,0.025207]
[1719136098328,4.0296085,64516.0,64515.0,0.025207]
[1719136099194,4.02950588,64516.0,64515.0,0.025207]
[1719136101315,4.01175636,64516.0,64515.0,0.025207]
[1719136102819,4.13515636,64516.0,64515.0,0.025207]
[1719136105739,4.21364248,64516.0,64515.0,0.025207]
[1719136105938,3.82806148,64516.0,64515.0,0.025207]
[1719136106672,3.71232492,64516.0,64515.0,0.025207]
[1719136106877,3.82884229,64516.0,64515.0,0.025207]
[1719136107206,3.90946709,64516.0,64515.0,0.025207]
[1719136107416,3.82933071,64516.0,64515.0,0.025207]
[1719136107813,3.98188485,64516.0,64515.0,0.025207]
[1719136109032,3.85848485,64516.0,64515.0,0.025207]
[1719136109830,3.85849597,64516.0,64515.0,0.025207]
[1719136112895,3.24623879,64516.0,64515.0,0.025207]